bitfinex-derivatives/quotes_SOLF0:USTF0_20250309
["timestamp","ask_amount","ask_price","bid_price","bid_amount"]
[1741548125263,31.68050934,128.11,128.02,1.9715]
[1741548125669,0.0512152,128.08,128.05,0.04944429]
[1741548125866,7.8102,128.06,128.05,0.04944429]
[1741548126372,0.0512152,128.08,128.05,0.04944429]
[1741548126871,0.0512152,128.08,128.06,7.8101]
[1741548127574,46.227,128.12,128.07,7.8096]
[1741548127867,63.48092454,128.18,128.06,2.1081]
[1741548128173,7.8051,128.15,128.1,7.8072]
[1741548128572,38.42,128.17,128.08,31.68050934]
[1741548128765,0.05581462,128.14,128.11,0.05882729]
[1741548130175,7.8065,128.12,128.11,0.05882729]
[1741548130367,0.05581462,128.14,128.11,0.05882729]
[1741548131680,7.8059,128.13,128.11,0.05882729]
[1741548131974,0.05581462,128.14,128.11,0.05882729]
[1741548132173,0.05581462,128.14,128.11,7.86552729]
[1741548133381,0.05581462,128.14,128.13,7.8059]
[1741548133681,38.4,128.19,128.11,0.05882729]
[1741548133872,7.8049,128.15,128.11,7.8068]
[1741548134278,38.4,128.19,128.09,33.62160934]
[1741548134476,31.68050934,128.18,128.09,1.9411]
[1741548134782,31.68050934,128.18,128.13,0.05351741]
[1741548135180,38.4,128.19,128.13,0.05351741]
[1741548135382,38.38,128.19,128.13,0.05351741]
[1741548135981,31.68050934,128.2,128.13,0.05351741]
[1741548136182,38.38,128.2,128.13,0.05351741]
[1741548136573,7.8026,128.19,128.15,7.8046]
[1741548136774,38.38,128.2,128.14,2.02]
[1741548136979,38.38,128.2,128.16,0.05675349]
[1741548137283,70.06050934,128.2,128.16,0.05675349]
[1741548137588,70.06050934,128.2,128.11,2.02]
[1741548137979,31.68050934,128.17,128.09,1.9411]
[1741548138182,38.36,128.16,128.09,1.9411]
[1741548138887,0.05388653,128.14,128.13,7.8058]
[1741548139086,0.05388653,128.14,128.11,0.05459284]
[1741548139885,0.05388653,128.14,128.12,7.8062]
[1741548140080,0.05388653,128.14,128.11,0.05459284]
[1741548140284,38.36,128.21,128.12,70.04050934]
[1741548140485,38.36,128.21,128.15,7.8044]
[1741548140684,7.8026,128.19,128.15,7.8044]
[1741548141388,7.8026,128.19,128.16,0.05414863]
[1741548142287,1.35802228,128.25,128.17,38.34]
[1741548142490,31.68050934,128.28,128.18,31.68050934]
[1741548142689,7.799,128.25,128.2,0.0508284]
[1741548142988,7.799,128.25,128.19,2.1143]
[1741548143185,38.34,128.27,128.21,0.05757009]
[1741548143488,31.68050934,128.28,128.21,0.05757009]
[1741548143791,7.7975,128.27,128.21,7.85837009]
[1741548143990,10.67322486,128.31,128.22,2.0493]
[1741548144181,696.46369838,128.34,128.22,2.0493]
[1741548144182,481.24050934,128.34,128.22,2.0493]
[1741548144382,7.7961,128.3,128.24,7.7988]
[1741548144692,38.34,128.31,128.22,2.0493]
[1741548144693,38.34,128.31,128.26,0.05921507]
[1741548145285,31.68050934,128.34,128.26,0.05921507]
[1741548145791,31.68050934,128.34,128.29,0.05307328]
[1741548146091,7.7957,128.3,128.29,0.05307328]
[1741548147294,7.7957,128.3,128.29,7.328e-05]
[1741548148789,3.9,128.3,128.21,257.5]
[1741548148994,31.68050934,128.29,128.21,257.5]
[1741548149189,38.3,128.28,128.21,257.5]
[1741548149382,7.7978,128.27,128.22,7.8001]
[1741548149787,38.3,128.28,128.21,257.5]
[1741548149989,0.05957651,128.26,128.23,0.05561811]
[1741548150483,7.7992,128.24,128.23,0.05561811]
[1741548150790,0.05957651,128.26,128.23,0.05561811]
[1741548150992,7.7992,128.24,128.23,0.05561811]
[1741548151195,0.05957651,128.26,128.23,0.05561811]
[1741548152694,0.05957651,128.26,128.24,7.7987]
[1741548152890,0.05957651,128.26,128.23,2.16561811]
[1741548154093,7.85767651,128.26,128.23,2.16561811]
[1741548154491,0.05957651,128.26,128.23,2.16561811]
[1741548155294,0.05957651,128.26,128.23,0.05561811]
[1741548155696,7.7992,128.24,128.23,0.05561811]
[1741548156396,7.7988,128.25,128.23,0.05561811]
[1741548156600,0.05957651,128.26,128.23,0.05561811]
[1741548156896,0.05957651,128.26,128.18,4.0379]
[1741548157090,38.26,128.27,128.18,4.0379]
[1741548157897,0.05229347,128.24,128.21,0.05033461]
[1741548158687,7.8004,128.22,128.21,0.05033461]
[1741548159793,7.8004,128.22,128.21,3.461e-05]
[1741548163095,7.8044,128.16,128.13,4.0946]
[1741548163893,7.8037,128.17,128.13,4.0946]
[1741548164197,0.05644298,128.16,128.14,0.05869182]
[1741548164898,0.05644298,128.16,128.15,7.8044]
[1741548165494,0.05644298,128.16,128.14,7.86369182]
[1741548166602,0.05644298,128.16,128.14,0.05869182]
[1741548167100,0.05644298,128.16,128.14,7.86359182]
[1741548167700,0.05644298,128.16,128.14,0.05869182]
[1741548168900,7.86074298,128.16,128.14,0.05869182]
[1741548169601,7.8047,128.15,128.14,0.05869182]
[1741548171201,38.22,128.15,128.07,1.9399]
[1741548172402,7.8075,128.11,128.1,0.0519999]
[1741548173099,0.05806432,128.12,128.1,0.0519999]
[1741548173307,0.05806432,128.12,128.11,7.8071]
[1741548173798,0.05806432,128.12,128.1,0.0519999]
[1741548174193,0.05806432,128.12,128.11,7.8071]
[1741548175401,7.8031,128.18,128.1,31.73250924]
[1741548175602,38.22,128.19,128.1,31.68050934]
[1741548175799,0.9279,128.21,128.12,31.68050934]
[1741548176000,64.67771391,128.23,128.15,31.68050934]
[1741548176195,102.89771391,128.23,128.15,31.68050934]
[1741548176505,0.05274533,128.2,128.18,0.05999568]
[1741548177701,7.8023,128.19,128.18,0.05999568]
[1741548178705,7.8047,128.16,128.13,3.9378]
[1741548179101,7.8047,128.16,128.13,1.9824]
[1741548179398,7.8048,128.15,128.13,1.9824]
[1741548179805,0.05074826,128.15,128.13,2.04155245]
[1741548180594,7.85574826,128.15,128.13,2.04155245]
[1741548180794,0.05074826,128.15,128.14,7.8053]
[1741548181201,0.05074826,128.15,128.13,2.04155245]
[1741548181805,38.25074826,128.15,128.13,0.05915245]
[1741548182006,38.25074826,128.15,128.08,1.9684]
[1741548182202,69.9312576,128.15,128.08,1.9684]
[1741548182509,38.25074826,128.15,128.08,1.9684]
[1741548183010,38.25074826,128.15,128.07,2.1124]
[1741548183206,69.9312576,128.15,128.1,0.05990514]
[1741548183505,69.9312576,128.15,128.05,259.4284]
[1741548183506,0.0562417,128.12,128.05,257.46]
[1741548183711,69.86050934,128.11,128.0,121.59940193]
[1741548184006,31.68050934,128.09,127.99,304.19445816]
[1741548184208,31.68050934,128.07,127.99,304.19445816]
[1741548184404,38.18,128.06,127.99,304.19445816]
[1741548184610,7.8125,128.03,127.99,304.19445816]
[1741548184810,0.05781492,128.04,128.01,0.05928326]
[1741548185705,7.8143,128.0,127.95,7.8167]
[1741548185908,38.18,128.02,127.94,6.1645]
[1741548186415,7.8141,128.0,127.95,7.8169]
[1741548186707,7.8141,128.0,127.94,4.1415]
[1741548186914,0.05781846,127.99,127.96,0.05522617]
[1741548190914,0.211,128.07,127.96,0.05522617]
[1741548191112,38.18,128.06,127.96,38.23522617]
[1741548191311,38.18,128.06,127.97,31.68050934]
[1741548191508,38.18,128.06,127.97,33.66540934]
[1741548191713,38.18,128.06,128.03,7.8119]
[1741548192311,38.2307176,128.06,128.03,7.86426595]
[1741548192513,38.2307176,128.06,128.03,0.05236595]
[1741548193012,0.0507176,128.06,128.03,0.05236595]
[1741548193212,0.0507176,128.06,128.05,7.8108]
[1741548193516,38.18,128.11,128.03,0.05236595]
[1741548193814,38.18,128.11,128.09,7.8079]
[1741548194011,38.18,128.11,128.05,31.68050934]
[1741548194606,0.0514529,128.09,128.07,0.05544887]
[1741548195517,0.0514529,128.09,128.08,7.809]
[1741548195713,0.0514529,128.09,128.07,0.05544887]
[1741548196110,0.0514529,128.09,128.07,7.86454887]
[1741548196315,0.0514529,128.09,128.07,0.05544887]
[1741548196815,0.0514529,128.09,128.08,7.809]
[1741548197220,0.0514529,128.09,128.07,0.05544887]
[1741548198120,0.0514529,128.09,128.08,7.809]
[1741548198315,0.0514529,128.09,128.07,0.05544887]
[1741548199115,0.0514529,128.09,128.07,7.86504887]
[1741548199315,0.0514529,128.09,128.07,0.05544887]
[1741548199518,38.14,128.14,128.07,0.05544887]
[1741548199723,1.2609,128.18,128.12,7.8062]
[1741548200019,38.14,128.17,128.12,7.8062]
[1741548200221,45.9437,128.17,128.12,7.8062]
[1741548200822,45.9437,128.17,128.13,0.05973092]
[1741548200823,0.05484999,128.16,128.13,0.05973092]
[1741548201632,278.04464848,128.25,128.13,0.05973092]
[1741548201633,87.40280326,128.25,128.15,31.68050934]
[1741548201818,86.04464848,128.25,128.18,31.68050934]
[1741548202120,86.04464848,128.25,128.16,69.82050934]
[1741548202517,86.04464848,128.25,128.2,7.8011]
[1741548202723,0.04976366,128.21,128.19,0.05685894]
[1741548207523,7.8017,128.2,128.19,0.05685894]
[1741548208122,0.04976366,128.21,128.19,0.05685894]
[1741548208824,7.8017,128.2,128.19,0.05685894]
[1741548209026,0.04976366,128.21,128.19,0.05685894]
[1741548209215,7.85106366,128.21,128.19,0.05685894]
[1741548209526,0.04976366,128.21,128.19,0.05685894]
[1741548209718,7.8017,128.2,128.19,0.05685894]
[1741548210215,0.04976366,128.21,128.19,0.05685894]
[1741548210814,0.04976366,128.21,128.13,9.9032]
[1741548211018,31.68050934,128.2,128.1,35.75930934]
[1741548211218,38.08,128.19,128.1,1.9593]
[1741548211423,7.806,128.13,128.09,257.64]
[1741548211626,7.806,128.13,128.07,1.9593]
[1741548211812,38.08,128.14,128.1,7.8074]
[1741548212018,0.05578112,128.11,128.09,0.05292467]
[1741548212523,0.05578112,128.11,128.1,7.8078]
[1741548214026,38.08,128.17,128.09,0.05292467]
[1741548214227,38.08,128.17,128.07,33.63980934]
[1741548214622,38.08,128.17,128.09,7.8081]
[1741548214824,38.08,128.17,128.07,33.63980934]
[1741548215027,0.0526764,128.14,128.12,0.05539683]
[1741548215225,7.8059,128.13,128.12,0.05539683]
[1741548215421,45.8659,128.13,128.12,0.05539683]
[1741548216024,38.06,128.13,128.12,0.05539683]
[1741548220027,0.0526764,128.14,128.12,0.05539683]
[1741548220634,0.0526764,128.14,128.13,7.8059]
[1741548225133,2.3989343,128.23,128.12,31.73590617]
[1741548225328,38.02,128.21,128.17,7.8034]
[1741548225735,1.0407,128.23,128.14,2.0253]
[1741548226039,38.02,128.22,128.15,31.68050934]
[1741548226339,0.05940769,128.2,128.17,0.05033808]
[1741548227239,7.86140769,128.2,128.17,0.05033808]
[1741548227640,0.05940769,128.2,128.17,0.05033808]
[1741548228140,0.05940769,128.2,128.17,7.85343808]
[1741548229139,0.05940769,128.2,128.17,0.05033808]
[1741548229336,0.05940769,128.2,128.19,7.8023]
[1741548231737,0.05940769,128.2,128.17,0.05033808]
[1741548231941,0.05940769,128.2,128.18,7.8026]
[1741548232240,0.05940769,128.2,128.17,0.05033808]
[1741548232435,0.05940769,128.2,128.17,7.85363808]
[1741548232744,0.05940769,128.2,128.17,0.05033808]
[1741548233341,0.05940769,128.2,128.18,7.8027]
[1741548234437,0.05940769,128.2,128.19,7.8023]
[1741548234841,0.05940769,128.2,128.17,0.05033808]
[1741548235037,0.05940769,128.2,128.18,7.8027]
[1741548235943,0.05940769,128.2,128.17,7.85353808]
[1741548236136,0.05940769,128.2,128.17,0.05033808]
[1741548236543,7.8023,128.19,128.17,0.05033808]
[1741548236741,0.05940769,128.2,128.17,0.05033808]
[1741548237046,7.86140769,128.2,128.17,0.05033808]
[1741548237645,0.05940769,128.2,128.17,0.05033808]
[1741548238045,7.8027,128.19,128.17,0.05033808]
[1741548238545,0.05940769,128.2,128.17,0.05033808]
[1741548239348,7.8026,128.19,128.17,0.05033808]
[1741548239549,0.05940769,128.2,128.17,0.05033808]
[1741548241044,7.8029,128.18,128.17,0.05033808]
[1741548242850,7.8057,128.14,128.11,279.31195485]
[1741548243047,7.8057,128.14,128.11,257.54]
[1741548243347,37.94,128.19,128.11,257.54]
[1741548243348,38.9791,128.19,128.11,257.54]
[1741548243852,7.805,128.15,128.12,7.8062]
[1741548244048,0.05987234,128.16,128.14,0.05241855]
[1741548244556,0.05987234,128.16,128.15,7.8045]
[1741548245154,37.94,128.19,128.17,7.8031]
[1741548245358,230.9796,128.23,128.15,19.72615485]
[1741548245547,10.67322486,128.24,128.19,19.72615485]
[1741548245854,10.67322486,128.24,128.2,1.9728]
[1741548246455,0.0526721,128.23,128.21,0.05650241]
[1741548248256,7.7976,128.27,128.21,0.05650241]
[1741548248652,80.39364006,128.28,128.21,0.05650241]
[1741548248955,7.798,128.26,128.21,0.05650241]
[1741548249350,0.05702225,128.25,128.21,0.05650241]
[1741548250452,0.05702225,128.25,128.22,7.8002]
[1741548250755,37.9,128.24,128.21,0.05650241]
[1741548251349,37.95702225,128.25,128.21,0.05650241]
[1741548252150,7.8003,128.23,128.21,0.05650241]
[1741548252755,37.95702225,128.25,128.21,0.05650241]
[1741548252756,7.7995,128.24,128.21,0.05650241]
[1741548252954,37.95702225,128.25,128.21,0.05650241]
[1741548253353,7.8,128.23,128.21,0.05650241]
[1741548253560,37.95702225,128.25,128.21,0.05650241]
[1741548253946,7.7996,128.24,128.21,0.05650241]
[1741548255266,37.95702225,128.25,128.21,0.05650241]
[1741548255456,37.93702225,128.25,128.21,0.05650241]
[1741548256561,37.93702225,128.25,128.22,7.8]
[1741548257362,37.93702225,128.25,128.21,0.05650241]
[1741548257656,0.05702225,128.25,128.21,31.60120848]
[1741548257855,259.14711804,128.3,128.21,31.60120848]
[1741548257856,37.88,128.29,128.21,31.60120848]
[1741548258060,37.88,128.29,128.21,31.54470607]
[1741548258364,10.67322486,128.31,128.21,69.42470607]
[1741548258557,10.67322486,128.31,128.24,31.54470607]
[1741548258752,10.67322486,128.31,128.25,6.2283]
[1741548258952,10.67322486,128.31,128.3,7.7956]
[1741548259763,1.03002486,128.31,128.3,7.7956]
[1741548260960,1.03002486,128.31,128.29,0.05846212]
[1741548261358,38.89002486,128.31,128.29,0.05846212]
[1741548261760,45.6554,128.31,128.29,0.05846212]
[1741548261955,37.86,128.31,128.29,0.05846212]
[1741548262964,39.8353,128.31,128.22,37.84]
[1741548263964,31.54470607,128.35,128.25,0.05682708]
[1741548263965,0.05885603,128.28,128.25,0.05682708]
[1741548264156,37.84,128.33,128.3,7.7956]
[1741548264361,0.04985266,128.28,128.25,0.05909563]
[1741548264562,37.84,128.33,128.24,31.54470607]
[1741548264862,0.053245,128.28,128.27,7.7974]
[1741548265060,37.84,128.33,128.25,4.1557]
[1741548265264,37.84,128.33,128.3,7.795]
[1741548265467,4.0956,128.36,128.3,7.795]
[1741548265662,0.05034223,128.33,128.3,0.05775638]
[1741548265868,0.05034223,128.33,128.31,7.7946]
[1741548266066,0.05034223,128.33,128.3,31.60246245]
[1741548266265,0.05034223,128.33,128.3,0.05775638]
[1741548267469,0.05034223,128.33,128.3,7.85305638]
[1741548268165,0.05034223,128.33,128.3,0.05775638]
[1741548269065,7.795,128.31,128.3,0.05775638]
[1741548269272,45.615,128.31,128.3,0.05775638]
[1741548271471,37.82,128.31,128.3,0.05775638]
[1741548271673,0.05034223,128.33,128.3,0.05775638]
[1741548272072,7.7948,128.32,128.3,0.05775638]
[1741548272875,45.64454223,128.33,128.3,0.05775638]
[1741548273469,0.05034223,128.33,128.3,0.05775638]
[1741548273671,7.7944,128.32,128.3,0.05775638]
[1741548274270,7.84434223,128.33,128.3,0.05775638]
[1741548275874,0.05034223,128.33,128.3,0.05775638]
[1741548276566,7.84444223,128.33,128.3,0.05775638]
[1741548276963,0.05034223,128.33,128.3,7.85305638]
[1741548277566,19.6840697,128.42,128.32,19.6840697]
[1741548277873,57.4640697,128.42,128.34,19.6840697]
[1741548278273,57.4640697,128.42,128.32,21.7547697]
[1741548278572,7.7906,128.39,128.35,7.7922]
[1741548278773,7.7906,128.39,128.32,21.7547697]
[1741548278774,0.03508047,128.38,128.36,0.05967007]
[1741548279169,7.82588047,128.38,128.36,0.05967007]
[1741548279672,0.03508047,128.38,128.36,0.05967007]
[1741548279974,7.7913,128.37,128.36,0.05967007]
[1741548280273,37.79508047,128.38,128.31,4.1065]
[1741548280472,37.76,128.38,128.31,11.9009]
[1741548280876,7.7935,128.34,128.31,1.9844]
[1741548281072,57.4440697,128.38,128.29,294.98]
[1741548281271,0.05269318,128.33,128.31,0.05657216]
[1741548281472,57.4440697,128.38,128.31,0.05657216]
[1741548281673,0.0570729,128.33,128.31,0.05657216]
[1741548281869,57.4440697,128.38,128.31,0.05657216]
[1741548282072,7.7944,128.32,128.31,0.05657216]
[1741548282275,37.74,128.33,128.31,0.05657216]
[1741548282474,37.79447842,128.33,128.31,0.05657216]
[1741548282776,7.7944,128.32,128.31,0.05657216]
[1741548284876,37.79447842,128.33,128.31,0.05657216]
[1741548285076,7.7944,128.32,128.31,0.05657216]
[1741548286474,7.7944,128.32,128.31,7.216e-05]
[1741548286681,7.7944,128.32,128.26,2.1]
[1741548286682,69.29274128,128.33,128.23,261.1705]
[1741548286876,69.23826286,128.33,128.23,261.1705]
[1741548287075,7.7956,128.3,128.26,7.798]
[1741548287773,0.05387495,128.29,128.27,0.05354296]
[1741548288478,7.85017495,128.29,128.27,0.05354296]
[1741548288678,0.05387495,128.29,128.27,0.05354296]
[1741548289178,7.85027495,128.29,128.27,0.05354296]
[1741548289681,0.05387495,128.29,128.27,0.05354296]
[1741548290980,7.85007495,128.29,128.27,0.05354296]
[1741548291281,0.05387495,128.29,128.27,0.05354296]
[1741548292083,7.7968,128.28,128.27,0.05354296]
[1741548292584,0.05387495,128.29,128.27,0.05354296]
[1741548293985,7.85037495,128.29,128.27,0.05354296]
[1741548294284,0.05387495,128.29,128.27,0.05354296]
[1741548295484,0.05387495,128.29,128.28,7.7968]
[1741548296073,0.05387495,128.29,128.27,7.85054296]
[1741548296874,0.05387495,128.29,128.27,0.05354296]
[1741548297078,0.05387495,128.29,128.28,7.7968]
[1741548297274,7.7933,128.34,128.28,7.7968]
[1741548297479,7.7933,128.34,128.27,31.55180582]
[1741548297480,7.7933,128.34,128.27,31.49826286]
[1741548297684,7.7933,128.34,128.3,7.7952]
[1741548298084,45.4922,128.36,128.32,7.7941]
[1741548298381,37.7,128.36,128.32,7.7941]
[1741548298586,7.7932,128.34,128.33,0.05853398]
[1741548298788,0.05280666,128.35,128.28,7.7964]
[1741548298988,37.7,128.36,128.32,0.0581658]
[1741548299187,0.05974279,128.33,128.32,0.0581658]
[1741548299989,7.85354279,128.33,128.32,0.0581658]
[1741548300783,0.05974279,128.33,128.24,31.49826286]
[1741548300978,37.68,128.32,128.24,31.49826286]
[1741548301685,37.68,128.32,128.25,7.7985]
[1741548301885,0.05321149,128.3,128.27,0.0585068]
[1741548303083,7.7962,128.29,128.27,0.0585068]
[1741548303490,0.05321149,128.3,128.27,0.0585068]
[1741548303879,7.84891149,128.3,128.27,0.0585068]
[1741548304480,0.05321149,128.3,128.27,0.0585068]
[1741548305085,0.05321149,128.3,128.28,7.7965]
[1741548305988,0.05321149,128.3,128.29,7.7962]
[1741548306386,39.7928,128.36,128.31,7.7946]
[1741548306587,45.73817386,128.38,128.31,7.7946]
[1741548306884,7.7929,128.35,128.31,7.7946]
[1741548307388,7.7929,128.35,128.31,7.7944]
[1741548307690,0.05009725,128.34,128.32,0.05266912]
[1741548308092,0.05009725,128.34,128.33,7.7938]
[1741548308490,37.66,128.38,128.33,7.7938]
[1741548308690,37.66,128.38,128.31,19.68834723]
[1741548308889,7.7915,128.37,128.31,19.68834723]
[1741548309190,7.7915,128.37,128.32,2.1098]
[1741548309387,37.66,128.39,128.32,2.1098]
[1741548309591,0.05230481,128.36,128.34,7.7928]
[1741548309787,0.05230481,128.36,128.33,0.05910785]
[1741548309989,0.05230481,128.36,128.35,7.7925]
[1741548310189,31.8004152,128.4,128.35,19.68834723]
[1741548310584,77.2285152,128.43,128.38,7.7902]
[1741548310787,69.4404152,128.43,128.35,19.68834723]
[1741548311391,7.7886,128.42,128.38,0.05528851]
[1741548311591,89.12876243,128.43,128.38,0.05528851]
[1741548311792,7.7901,128.39,128.38,0.05528851]
[1741548311994,57.32834723,128.39,128.32,2.1098]
[1741548312393,37.64,128.39,128.32,2.1098]
[1741548312990,7.7914,128.37,128.33,7.7934]
[1741548313291,7.7914,128.37,128.34,0.05114011]
[1741548313292,7.84515104,128.37,128.34,0.05114011]
[1741548313492,0.05375104,128.37,128.34,0.05114011]
[1741548314295,0.05375104,128.37,128.35,7.7921]
[1741548315194,0.05375104,128.37,128.36,7.7919]
[1741548315395,61.09198624,128.45,128.35,19.68834723]
[1741548315595,3.982,128.45,128.37,19.68834723]
[1741548315889,41.602,128.45,128.37,19.68834723]
[1741548316296,41.602,128.45,128.39,7.7896]
[1741548316297,3.982,128.45,128.39,7.7896]
[1741548316594,175.15341091,128.46,128.4,0.05197826]
[1741548316795,7.787,128.45,128.4,0.05197826]
[1741548316995,175.15341091,128.46,128.4,7.84107826]
[1741548317197,175.15341091,128.46,128.4,0.05197826]
[1741548317495,7.7886,128.42,128.4,0.05197826]
[1741548317795,175.15341091,128.46,128.4,0.05197826]
[1741548318096,155.46506368,128.46,128.4,0.05197826]
[1741548318295,7.7868,128.45,128.4,0.05197826]
[1741548318491,117.84506368,128.46,128.41,37.6]
[1741548318796,125.63136368,128.46,128.42,3.8724]
[1741548318991,117.84506368,128.46,128.42,3.8724]
[1741548319192,117.84506368,128.46,128.43,0.05346605]
[1741548319393,123.95656368,128.46,128.36,37.6]
[1741548319692,6.1115,128.46,128.36,37.6]
[1741548319892,31.4356872,128.45,128.35,5.9609]
[1741548320096,37.6,128.44,128.35,5.9609]
[1741548320393,7.7893,128.41,128.35,5.9609]
[1741548320595,0.05346605,128.41,128.38,0.05047569]
[1741548320792,37.63346605,128.41,128.29,294.68]
[1741548321096,7.7918,128.37,128.3,1.9375]
[1741548321293,37.58,128.41,128.3,1.9375]
[1741548321294,37.58,128.41,128.31,7.7946]
[1741548321495,7.793,128.35,128.3,1.9375]
[1741548321890,41.6437,128.4,128.3,1.9375]
[1741548321891,37.58,128.36,128.3,1.9375]
[1741548322097,0.05714198,128.34,128.31,0.05322355]
[1741548322489,7.7938,128.33,128.31,0.05322355]
[1741548322695,0.05714198,128.34,128.31,0.05322355]
[1741548323387,0.05714198,128.34,128.33,7.7938]
[1741548323798,0.05714198,128.34,128.31,0.05322355]
[1741548324093,35.4993872,128.4,128.31,0.05322355]
[1741548324094,7.7884,128.42,128.36,7.7917]
[1741548324294,37.58,128.43,128.34,31.4356872]
[1741548325197,37.58,128.43,128.37,0.05623845]
[1741548325198,0.04679976,128.4,128.37,0.05623845]
[1741548326400,37.56,128.39,128.37,0.05623845]
[1741548327603,0.04679976,128.4,128.37,0.05623845]
[1741548328092,0.04679976,128.4,128.37,31.49192565]
[1741548328297,0.04679976,128.4,128.39,7.7901]
[1741548328497,80.11328959,128.47,128.38,41.5553]
[1741548328691,80.11328959,128.47,128.4,31.4356872]
[1741548329199,80.11328959,128.47,128.38,41.5553]
[1741548329200,37.56,128.47,128.38,41.5553]
[1741548329398,7.7872,128.44,128.39,7.7897]
[1741548329599,37.56,128.47,128.38,41.5553]
[1741548329900,37.56,128.47,128.41,0.05839062]
[1741548330100,7.786,128.46,128.41,0.05839062]
[1741548331095,7.786,128.46,128.41,7.84709062]
[1741548331299,37.56,128.47,128.41,0.05839062]
[1741548331693,7.7881,128.43,128.41,0.05839062]
[1741548331898,37.54,128.43,128.41,0.05839062]
[1741548332296,7.7883,128.42,128.41,0.05839062]
[1741548333091,37.54,128.43,128.41,0.05839062]
[1741548334499,45.3281,128.43,128.41,0.05839062]
[1741548334700,37.54,128.43,128.41,0.05839062]
[1741548335001,41.44,128.43,128.33,7.7934]
[1741548335202,31.4356872,128.41,128.3,294.58]
[1741548335699,31.4356872,128.41,128.3,257.04]
[1741548336203,7.7919,128.36,128.35,0.05944002]
[1741548338297,0.05254788,128.37,128.3,257.04]
[1741548338498,37.52,128.38,128.3,257.04]
[1741548338993,45.3111,128.38,128.33,7.7933]
[1741548339197,45.3111,128.38,128.3,257.04]
[1741548339394,37.52,128.38,128.3,257.04]
[1741548339598,0.04956092,128.35,128.34,7.7929]
[1741548339804,0.04956092,128.35,128.33,0.05101188]
[1741548339996,7.7942,128.33,128.28,7.7962]
[1741548340305,7.7942,128.33,128.25,4.0134]
[1741548340505,37.52,128.34,128.25,4.0134]
[1741548341205,0.04949542,128.31,128.29,7.796]
[1741548341502,0.04949542,128.31,128.28,0.05242722]
[1741548341701,0.04949542,128.31,128.28,7.84922722]
[1741548341901,0.04949542,128.31,128.28,0.05242722]
[1741548343005,0.04949542,128.31,128.28,7.84922722]
[1741548343502,0.04949542,128.31,128.28,0.05242722]
[1741548343895,0.04949542,128.31,128.28,7.84872722]
[1741548344096,0.04949542,128.31,128.28,0.05242722]
[1741548344600,0.04949542,128.31,128.29,7.7959]
[1741548344904,0.04949542,128.31,128.28,0.05242722]
[1741548346208,0.04949542,128.31,128.29,7.7959]
[1741548346405,0.04949542,128.31,128.28,0.05242722]
[1741548346605,0.04949542,128.31,128.28,7.84882722]
[1741548347111,0.04949542,128.31,128.28,0.05242722]
[1741548347814,7.84449542,128.31,128.28,0.05242722]
[1741548348314,0.04949542,128.31,128.28,0.05242722]
[1741548348608,0.04949542,128.31,128.29,7.7956]
[1741548349410,0.04949542,128.31,128.28,7.84902722]
[1741548349911,0.04949542,128.31,128.28,0.05242722]
[1741548350113,7.7961,128.3,128.28,0.05242722]
[1741548350718,0.04949542,128.31,128.28,0.05242722]
[1741548350917,7.7962,128.29,128.28,0.05242722]
[1741548351711,0.04949542,128.31,128.28,0.05242722]
[1741548353218,7.84479542,128.31,128.28,7.84912722]
[1741548353516,0.04949542,128.31,128.28,0.05242722]
[1741548354214,0.04949542,128.31,128.3,7.7956]
[1741548354520,0.04949542,128.31,128.28,0.05242722]
[1741548355517,0.04949542,128.31,128.3,7.7956]
[1741548355718,0.04949542,128.31,128.28,0.05242722]
[1741548357517,7.796,128.3,128.28,0.05242722]
[1741548358617,7.7962,128.29,128.28,0.05242722]
[1741548358915,0.04949542,128.31,128.28,0.05242722]
[1741548360120,0.04949542,128.31,128.3,7.7956]
[1741548362725,2.0707,128.39,128.3,31.4356872]
[1741548362920,9.8933,128.4,128.3,31.4356872]
[1741548363116,2.1036,128.4,128.3,31.4356872]
[1741548363318,42.55328959,128.41,128.38,7.7905]
[1741548363825,42.61020351,128.41,128.38,7.84986344]
[1741548364127,42.61020351,128.41,128.38,0.05936344]
[1741548365222,0.05691392,128.41,128.38,0.05936344]
[1741548365623,42.55328959,128.46,128.39,31.4356872]
[1741548366228,42.55328959,128.46,128.4,4.1717]
[1741548366431,42.55328959,128.46,128.41,37.44]